[Event "Titled Tuesday Blitz July 18 Late 2023"]
[White "NigelDwarf"]
[Black "Gerbelli Neto, Eduardo"]
[BlackFideId "2103281"]
[WhiteElo "2500"]
[BlackElo "2385"]
[Result "1-0"]
[Round "7"]
[TimeControl "180+2"]
[Date "2023.07.18"]
[WhiteClock "0:00:20"]
[BlackClock "0:00:20"]
[Board "90"]

1. Nf3 {[%clk 0:03:00]}  Nf6 {[%clk 0:02:59]} 2. c4 {[%clk 0:02:59]}  c5 {[%clk 0:02:59]} 3. Nc3 {[%clk 0:02:58]}  d5 {[%clk 0:02:58]} 4. cxd5 {[%clk 0:02:58]}  Nxd5 {[%clk 0:02:59]} 5. g3 {[%clk 0:02:54]}  Nc6 {[%clk 0:02:58]} 6. Bg2 {[%clk 0:02:54]}  Nc7 {[%clk 0:02:56]} 7. O-O {[%clk 0:02:54]}  e5 {[%clk 0:02:56]} 8. d3 {[%clk 0:02:52]}  Be7 {[%clk 0:02:56]} 9. a3 {[%clk 0:02:52]}  Rb8 {[%clk 0:02:55]} 10. Be3 {[%clk 0:02:50]}  O-O {[%clk 0:02:53]} 11. Rc1 {[%clk 0:02:39]}  Ne6 {[%clk 0:02:43]} 12. Ne4 {[%clk 0:02:36]}  b6 {[%clk 0:02:35]} 13. b4 {[%clk 0:02:34]}  f5 {[%clk 0:02:25]} 14. Neg5 {[%clk 0:02:21]}  Nxg5 {[%clk 0:02:25]} 15. Nxg5 {[%clk 0:02:08]}  Nd4 {[%clk 0:02:25]} 16. Bxd4 {[%clk 0:02:05]}  Bxg5 {[%clk 0:02:15]} 17. Bxe5 {[%clk 0:02:05]}  Bxc1 {[%clk 0:02:09]} 18. Bxb8 {[%clk 0:01:59]}  Bg5 {[%clk 0:01:53]} 19. bxc5 {[%clk 0:01:54]}  bxc5 {[%clk 0:01:49]} 20. Qb3+ {[%clk 0:01:46]}  Kh8 {[%clk 0:01:47]} 21. Bxa7 {[%clk 0:01:46]}  Qe7 {[%clk 0:01:35]} 22. Bb6 {[%clk 0:01:24]}  Be6 {[%clk 0:01:25]} 23. Qb5 {[%clk 0:01:18]}  Rc8 {[%clk 0:01:22]} 24. e3 {[%clk 0:01:12]}  c4 {[%clk 0:01:21]} 25. dxc4 {[%clk 0:00:52]}  Bxc4 {[%clk 0:01:20]} 26. Qxf5 {[%clk 0:00:52]}  Rf8 {[%clk 0:01:04]} 27. Qa5 {[%clk 0:00:45]}  Bxf1 {[%clk 0:00:47]} 28. Bxf1 {[%clk 0:00:39]}  Rc8 {[%clk 0:00:35]} 29. Qf5 {[%clk 0:00:29]}  Rb8 {[%clk 0:00:31]} 30. Bc5 {[%clk 0:00:28]}  Qf6 {[%clk 0:00:29]} 31. Qxf6 {[%clk 0:00:22]}  Bxf6 {[%clk 0:00:29]} 32. a4 {[%clk 0:00:23]}  Rb1 {[%clk 0:00:28]} 33. Kg2 {[%clk 0:00:22]}  Bd8 {[%clk 0:00:28]} 34. Bb5 {[%clk 0:00:22]}  h6 {[%clk 0:00:26]} 35. e4 {[%clk 0:00:20]}  Kg8 {[%clk 0:00:25]} 36. e5 {[%clk 0:00:20]}  Kf7 {[%clk 0:00:25]} 37. f4 {[%clk 0:00:20]}  Ke6 {[%clk 0:00:25]} 38. Bc4+ {[%clk 0:00:20]}  Kf5 {[%clk 0:00:20]} 39. Bd3+ {[%clk 0:00:20]} 1-0


[Site "https://www.chess.com"]

[Event "Titled Tuesday Blitz July 18 Late 2023"]
[White "vishwa_vijeta"]
[Black "ExchangeAB"]
[WhiteElo "2493"]
[BlackElo "2377"]
[Result "1-0"]
[Round "7"]
[TimeControl "180+2"]
[Date "2023.07.18"]
[WhiteClock "0:00:18"]
[BlackClock "0:00:00"]
[Board "93"]

1. e4 {[%clk 0:03:00]}  c6 {[%clk 0:03:00]} 2. d4 {[%clk 0:03:00]}  d5 {[%clk 0:03:01]} 3. Nd2 {[%clk 0:03:00]}  dxe4 {[%clk 0:03:01]} 4. Nxe4 {[%clk 0:03:01]}  Bf5 {[%clk 0:03:01]} 5. Ng3 {[%clk 0:03:00]}  Bg6 {[%clk 0:03:02]} 6. h4 {[%clk 0:03:00]}  h6 {[%clk 0:03:02]} 7. Nf3 {[%clk 0:03:00]}  Nd7 {[%clk 0:03:01]} 8. h5 {[%clk 0:03:00]}  Bh7 {[%clk 0:03:02]} 9. Bd3 {[%clk 0:03:00]}  Bxd3 {[%clk 0:03:02]} 10. Qxd3 {[%clk 0:03:01]}  e6 {[%clk 0:03:02]} 11. Bd2 {[%clk 0:02:59]}  Ngf6 {[%clk 0:03:02]} 12. O-O-O {[%clk 0:02:57]}  Be7 {[%clk 0:03:02]} 13. Kb1 {[%clk 0:02:57]}  O-O {[%clk 0:02:59]} 14. Ne4 {[%clk 0:02:57]}  Nxe4 {[%clk 0:03:00]} 15. Qxe4 {[%clk 0:02:57]}  Nf6 {[%clk 0:03:00]} 16. Qe2 {[%clk 0:02:32]}  Qd5 {[%clk 0:02:59]} 17. Ne5 {[%clk 0:02:30]}  Rad8 {[%clk 0:02:29]} 18. Be3 {[%clk 0:02:10]}  b5 {[%clk 0:02:24]} 19. g4 {[%clk 0:01:55]}  Nd7 {[%clk 0:02:24]} 20. Nd3 {[%clk 0:01:51]}  a5 {[%clk 0:01:58]} 21. Nf4 {[%clk 0:01:37]}  Qd6 {[%clk 0:01:48]} 22. f3 {[%clk 0:01:34]}  Bg5 {[%clk 0:01:47]} 23. Nd3 {[%clk 0:01:28]}  Bxe3 {[%clk 0:01:45]} 24. Qxe3 {[%clk 0:01:29]}  Nb6 {[%clk 0:01:38]} 25. Ne5 {[%clk 0:01:17]}  Nc4 {[%clk 0:01:35]} 26. Nxc4 {[%clk 0:01:15]}  bxc4 {[%clk 0:01:36]} 27. g5 {[%clk 0:01:15]}  hxg5 {[%clk 0:01:32]} 28. Qxg5 {[%clk 0:01:16]}  Qd5 {[%clk 0:01:30]} 29. Qf4 {[%clk 0:01:08]}  Qf5 {[%clk 0:01:29]} 30. Qe3 {[%clk 0:01:00]}  Rd5 {[%clk 0:01:19]} 31. Rdg1 {[%clk 0:00:50]}  e5 {[%clk 0:01:10]} 32. Qh6 {[%clk 0:00:32]}  Qh7 {[%clk 0:01:04]} 33. Qxc6 {[%clk 0:00:30]}  Rxd4 {[%clk 0:01:03]} 34. h6 {[%clk 0:00:30]}  Rfd8 {[%clk 0:00:39]} 35. a3 {[%clk 0:00:23]}  g6 {[%clk 0:00:35]} 36. Qf6 {[%clk 0:00:22]}  R4d5 {[%clk 0:00:30]} 37. Re1 {[%clk 0:00:22]}  Re8 {[%clk 0:00:20]} 38. f4 {[%clk 0:00:21]}  e4 {[%clk 0:00:19]} 39. Reg1 {[%clk 0:00:21]}  e3 {[%clk 0:00:15]} 40. f5 {[%clk 0:00:20]}  e2 {[%clk 0:00:14]} 41. fxg6 {[%clk 0:00:20]}  Rd1+ {[%clk 0:00:11]} 42. Rxd1 {[%clk 0:00:20]}  exd1=Q+ {[%clk 0:00:12]} 43. Rxd1 {[%clk 0:00:20]}  Qxg6 {[%clk 0:00:12]} 44. h7+ {[%clk 0:00:19]}  Qxh7 {[%clk 0:00:08]} 45. Rg1+ {[%clk 0:00:19]}  Kf8 {[%clk 0:00:08]} 46. Qd6+ {[%clk 0:00:19]}  Re7 {[%clk 0:00:07]} 47. Re1 {[%clk 0:00:19]}  f6 {[%clk 0:00:00]} 48. Qd8+ {[%clk 0:00:18]} 1-0


[Site "https://www.chess.com"]

[Event "Titled Tuesday Blitz July 18 Late 2023"]
[White "Sos Andreu, Eric"]
[Black "Shapiro, Daniel"]
[WhiteFideId "22247017"]
[BlackFideId "2001780"]
[WhiteElo "2487"]
[BlackElo "2371"]
[Result "1-0"]
[Round "7"]
[TimeControl "180+2"]
[Date "2023.07.18"]
[WhiteClock "0:00:20"]
[BlackClock "0:00:00"]
[Board "95"]

1. d4 {[%clk 0:03:00]}  Nf6 {[%clk 0:02:58]} 2. c4 {[%clk 0:03:00]}  e6 {[%clk 0:02:58]} 3. g3 {[%clk 0:03:00]}  d5 {[%clk 0:02:55]} 4. Bg2 {[%clk 0:03:00]}  Bb4+ {[%clk 0:02:55]} 5. Bd2 {[%clk 0:03:00]}  Be7 {[%clk 0:02:55]} 6. Nf3 {[%clk 0:03:00]}  c6 {[%clk 0:02:56]} 7. O-O {[%clk 0:02:59]}  O-O {[%clk 0:02:56]} 8. Qc2 {[%clk 0:02:59]}  b6 {[%clk 0:02:56]} 9. Bf4 {[%clk 0:02:58]}  Bb7 {[%clk 0:02:55]} 10. Rd1 {[%clk 0:02:55]}  Nbd7 {[%clk 0:02:53]} 11. Nc3 {[%clk 0:02:55]}  Rc8 {[%clk 0:02:53]} 12. e4 {[%clk 0:02:53]}  h6 {[%clk 0:02:41]} 13. b3 {[%clk 0:02:46]}  a5 {[%clk 0:02:36]} 14. Rac1 {[%clk 0:02:45]}  Ba6 {[%clk 0:02:28]} 15. Ne5 {[%clk 0:02:39]}  b5 {[%clk 0:02:01]} 16. exd5 {[%clk 0:02:23]}  cxd5 {[%clk 0:01:55]} 17. c5 {[%clk 0:02:22]}  b4 {[%clk 0:01:50]} 18. Na4 {[%clk 0:02:14]}  Nxe5 {[%clk 0:01:45]} 19. Bxe5 {[%clk 0:02:15]}  Nd7 {[%clk 0:01:35]} 20. Bf4 {[%clk 0:02:15]}  Bb5 {[%clk 0:01:34]} 21. Be3 {[%clk 0:01:57]}  Qc7 {[%clk 0:01:27]} 22. Nb2 {[%clk 0:01:56]}  Qc6 {[%clk 0:01:25]} 23. Nd3 {[%clk 0:01:50]}  Rb8 {[%clk 0:01:14]} 24. h4 {[%clk 0:01:50]}  Rb7 {[%clk 0:01:10]} 25. Kh2 {[%clk 0:01:42]}  Ra8 {[%clk 0:01:07]} 26. Qd2 {[%clk 0:01:19]}  Bxd3 {[%clk 0:01:01]} 27. Qxd3 {[%clk 0:01:19]}  a4 {[%clk 0:01:01]} 28. Ra1 {[%clk 0:01:12]}  Rba7 {[%clk 0:00:57]} 29. Qf1 {[%clk 0:01:08]}  Nf6 {[%clk 0:00:53]} 30. Rab1 {[%clk 0:01:00]}  Ng4+ {[%clk 0:00:45]} 31. Kh3 {[%clk 0:00:57]}  Nxe3 {[%clk 0:00:43]} 32. fxe3 {[%clk 0:00:57]}  axb3 {[%clk 0:00:28]} 33. Rxb3 {[%clk 0:00:54]}  Rxa2 {[%clk 0:00:26]} 34. Rxb4 {[%clk 0:00:54]}  Rc2 {[%clk 0:00:20]} 35. Rb6 {[%clk 0:00:53]}  Qc7 {[%clk 0:00:17]} 36. Qb5 {[%clk 0:00:31]}  Raa2 {[%clk 0:00:11]} 37. Rg1 {[%clk 0:00:31]}  g6 {[%clk 0:00:09]} 38. Qe8+ {[%clk 0:00:30]}  Kg7 {[%clk 0:00:08]} 39. Rb8 {[%clk 0:00:30]}  Kf6 {[%clk 0:00:03]} 40. g4 {[%clk 0:00:21]}  g5 {[%clk 0:00:00]} 41. Qh8+ {[%clk 0:00:20]} 1-0


[Site "https://www.chess.com"]

[Event "Titled Tuesday Blitz July 18 Late 2023"]
[White "Rodriguez Fontecha, Marcos"]
[Black "Bogaudinov, Rushan"]
[WhiteFideId "2256576"]
[BlackFideId "4129288"]
[WhiteElo "2485"]
[BlackElo "2369"]
[Result "0-1"]
[Round "7"]
[TimeControl "180+2"]
[Date "2023.07.18"]
[WhiteClock "0:00:04"]
[BlackClock "0:00:27"]
[Board "96"]

1. e4 {[%clk 0:03:00]}  a6 {[%clk 0:02:45]} 2. Nc3 {[%clk 0:02:59]}  b5 {[%clk 0:02:45]} 3. g3 {[%clk 0:03:00]}  b4 {[%clk 0:02:44]} 4. Nce2 {[%clk 0:02:59]}  Bb7 {[%clk 0:02:44]} 5. d3 {[%clk 0:02:59]}  d5 {[%clk 0:02:38]} 6. f3 {[%clk 0:02:45]}  h5 {[%clk 0:02:36]} 7. Bg2 {[%clk 0:02:43]}  h4 {[%clk 0:02:36]} 8. Nh3 {[%clk 0:02:32]}  e6 {[%clk 0:02:34]} 9. O-O {[%clk 0:02:31]}  hxg3 {[%clk 0:02:34]} 10. hxg3 {[%clk 0:02:30]}  c5 {[%clk 0:02:12]} 11. Be3 {[%clk 0:02:29]}  Nc6 {[%clk 0:02:11]} 12. exd5 {[%clk 0:02:25]}  Qxd5 {[%clk 0:02:05]} 13. Nef4 {[%clk 0:02:18]}  Qd7 {[%clk 0:02:05]} 14. g4 {[%clk 0:02:04]}  Nf6 {[%clk 0:02:02]} 15. Qd2 {[%clk 0:02:02]}  Be7 {[%clk 0:01:53]} 16. g5 {[%clk 0:01:49]}  Nd5 {[%clk 0:01:50]} 17. Nxd5 {[%clk 0:01:39]}  exd5 {[%clk 0:01:48]} 18. g6 {[%clk 0:01:38]}  Rxh3 {[%clk 0:01:41]} 19. gxf7+ {[%clk 0:01:37]}  Kxf7 {[%clk 0:01:37]} 20. Bxh3 {[%clk 0:01:37]}  Qxh3 {[%clk 0:01:37]} 21. Qg2 {[%clk 0:01:37]}  Qxg2+ {[%clk 0:01:30]} 22. Kxg2 {[%clk 0:01:37]}  d4 {[%clk 0:01:27]} 23. Bf4 {[%clk 0:01:36]}  g5 {[%clk 0:01:17]} 24. Bg3 {[%clk 0:01:31]}  Bf6 {[%clk 0:01:17]} 25. Rfe1 {[%clk 0:01:29]}  Ne7 {[%clk 0:01:12]} 26. Kf2 {[%clk 0:01:17]}  Nf5 {[%clk 0:01:09]} 27. Be5 {[%clk 0:01:13]}  Nh4 {[%clk 0:01:03]} 28. Bxf6 {[%clk 0:01:05]}  Kxf6 {[%clk 0:01:04]} 29. a3 {[%clk 0:01:05]}  bxa3 {[%clk 0:01:02]} 30. bxa3 {[%clk 0:01:04]}  Nxf3 {[%clk 0:01:01]} 31. Reb1 {[%clk 0:01:04]}  Bd5 {[%clk 0:00:51]} 32. Rb6+ {[%clk 0:01:01]}  Kf5 {[%clk 0:00:51]} 33. Rd6 {[%clk 0:00:59]}  Ke5 {[%clk 0:00:49]} 34. Rd7 {[%clk 0:00:46]}  Rb8 {[%clk 0:00:44]} 35. Rh1 {[%clk 0:00:38]}  Rb2 {[%clk 0:00:41]} 36. Rh6 {[%clk 0:00:22]}  Rxc2+ {[%clk 0:00:38]} 37. Kg3 {[%clk 0:00:22]}  Nh4 {[%clk 0:00:31]} 38. Kg4 {[%clk 0:00:14]}  Rg2+ {[%clk 0:00:31]} 39. Kh3 {[%clk 0:00:04]}  Be6+ {[%clk 0:00:27]} 0-1


[Site "https://www.chess.com"]

[Event "Titled Tuesday Blitz July 18 Late 2023"]
[White "Adireddy Arjun"]
[Black "Bochnicka, Vladimir"]
[WhiteFideId "25647709"]
[BlackFideId "14943450"]
[WhiteElo "2362"]
[BlackElo "2478"]
[Result "1-0"]
[Round "7"]
[TimeControl "180+2"]
[Date "2023.07.18"]
[WhiteClock "0:00:02"]
[BlackClock "0:00:00"]
[Board "97"]

1. Nf3 {[%clk 0:02:59]}  d5 {[%clk 0:02:59]} 2. g3 {[%clk 0:02:57]}  Bg4 {[%clk 0:02:59]} 3. Bg2 {[%clk 0:02:54]}  c6 {[%clk 0:03:00]} 4. O-O {[%clk 0:02:54]}  Nd7 {[%clk 0:02:59]} 5. d4 {[%clk 0:02:54]}  Ngf6 {[%clk 0:02:59]} 6. h3 {[%clk 0:02:54]}  Bh5 {[%clk 0:02:56]} 7. Nbd2 {[%clk 0:02:47]}  h6 {[%clk 0:02:56]} 8. b3 {[%clk 0:02:47]}  Bg6 {[%clk 0:02:56]} 9. Bb2 {[%clk 0:02:46]}  e6 {[%clk 0:02:57]} 10. c4 {[%clk 0:02:44]}  Be7 {[%clk 0:02:56]} 11. Re1 {[%clk 0:02:38]}  O-O {[%clk 0:02:57]} 12. e3 {[%clk 0:02:37]}  Rc8 {[%clk 0:02:57]} 13. Qe2 {[%clk 0:02:37]}  c5 {[%clk 0:02:56]} 14. cxd5 {[%clk 0:02:29]}  Nxd5 {[%clk 0:02:56]} 15. Nc4 {[%clk 0:02:27]}  Bf6 {[%clk 0:02:16]} 16. Rad1 {[%clk 0:02:02]}  Qe7 {[%clk 0:02:09]} 17. e4 {[%clk 0:01:55]}  Nb4 {[%clk 0:01:59]} 18. e5 {[%clk 0:01:49]}  cxd4 {[%clk 0:01:51]} 19. exf6 {[%clk 0:01:46]}  Nxf6 {[%clk 0:01:51]} 20. Nxd4 {[%clk 0:01:42]}  Rfd8 {[%clk 0:01:46]} 21. a3 {[%clk 0:01:33]}  Na6 {[%clk 0:01:41]} 22. Nb5 {[%clk 0:01:23]}  Nc5 {[%clk 0:01:36]} 23. Nxa7 {[%clk 0:01:09]}  Ra8 {[%clk 0:01:33]} 24. Nb5 {[%clk 0:01:08]}  Nxb3 {[%clk 0:01:27]} 25. Qe3 {[%clk 0:00:49]}  Nc5 {[%clk 0:01:18]} 26. Bxf6 {[%clk 0:00:31]}  gxf6 {[%clk 0:01:11]} 27. Nbd6 {[%clk 0:00:25]}  Qc7 {[%clk 0:00:50]} 28. Nb5 {[%clk 0:00:14]}  Qe7 {[%clk 0:00:45]} 29. Ncd6 {[%clk 0:00:07]}  b6 {[%clk 0:00:20]} 30. Bxa8 {[%clk 0:00:06]}  Rxa8 {[%clk 0:00:21]} 31. Qxh6 {[%clk 0:00:05]}  Nd3 {[%clk 0:00:19]} 32. Rf1 {[%clk 0:00:03]}  Ne5 {[%clk 0:00:19]} 33. Qe3 {[%clk 0:00:03]}  Qd7 {[%clk 0:00:16]} 34. Ne4 {[%clk 0:00:01]}  Qxb5 {[%clk 0:00:15]} 35. Nxf6+ {[%clk 0:00:02]}  Kg7 {[%clk 0:00:16]} 36. Ng4 {[%clk 0:00:02]}  Nxg4 {[%clk 0:00:14]} 37. hxg4 {[%clk 0:00:03]}  Rh8 {[%clk 0:00:07]} 38. f3 {[%clk 0:00:03]}  Qb2 {[%clk 0:00:06]} 39. Qd4+ {[%clk 0:00:03]}  Qxd4+ {[%clk 0:00:06]} 40. Rxd4 {[%clk 0:00:04]}  Ra8 {[%clk 0:00:07]} 41. Ra1 {[%clk 0:00:04]}  b5 {[%clk 0:00:07]} 42. Rb4 {[%clk 0:00:04]}  Bd3 {[%clk 0:00:07]} 43. a4 {[%clk 0:00:03]}  bxa4 {[%clk 0:00:08]} 44. Raxa4 {[%clk 0:00:04]}  Rc8 {[%clk 0:00:08]} 45. Kf2 {[%clk 0:00:05]}  Rc2+ {[%clk 0:00:08]} 46. Ke3 {[%clk 0:00:05]}  Bf1 {[%clk 0:00:08]} 47. Re4 {[%clk 0:00:03]}  Rg2 {[%clk 0:00:07]} 48. Kf4 {[%clk 0:00:03]}  Be2 {[%clk 0:00:05]} 49. Ra7 {[%clk 0:00:02]}  Rf2 {[%clk 0:00:05]} 50. Re3 {[%clk 0:00:02]}  Bd1 {[%clk 0:00:04]} 51. Ke4 {[%clk 0:00:02]}  Bc2+ {[%clk 0:00:05]} 52. Kf4 {[%clk 0:00:02]}  Rd2 {[%clk 0:00:05]} 53. Rxe6 {[%clk 0:00:01]}  Rd4+ {[%clk 0:00:04]} 54. Ke5 {[%clk 0:00:02]}  Rd3 {[%clk 0:00:02]} 55. Rf6 {[%clk 0:00:02]}  Re3+ {[%clk 0:00:00]} 56. Kf4 {[%clk 0:00:02]} 1-0


[Site "https://www.chess.com"]

[Event "Titled Tuesday Blitz July 18 Late 2023"]
[White "SicilianPanzer"]
[Black "Horcajuelo Rocamora, Martin"]
[BlackFideId "24573027"]
[WhiteElo "2297"]
[BlackElo "2465"]
[Result "1-0"]
[Round "7"]
[TimeControl "180+2"]
[Date "2023.07.18"]
[WhiteClock "0:01:20"]
[BlackClock "0:01:24"]
[Board "100"]

1. e4 {[%clk 0:02:59]}  e5 {[%clk 0:02:58]} 2. Nc3 {[%clk 0:02:58]}  Bb4 {[%clk 0:02:56]} 3. a3 {[%clk 0:02:50]}  Bxc3 {[%clk 0:02:55]} 4. dxc3 {[%clk 0:02:50]}  Nc6 {[%clk 0:02:55]} 5. Be3 {[%clk 0:02:44]}  d6 {[%clk 0:02:54]} 6. Bd3 {[%clk 0:02:42]}  Be6 {[%clk 0:02:53]} 7. Ne2 {[%clk 0:02:39]}  Nge7 {[%clk 0:02:50]} 8. f3 {[%clk 0:02:31]}  d5 {[%clk 0:02:46]} 9. Qd2 {[%clk 0:02:11]}  Qd7 {[%clk 0:02:43]} 10. b4 {[%clk 0:01:59]}  dxe4 {[%clk 0:02:39]} 11. fxe4 {[%clk 0:01:58]}  O-O-O {[%clk 0:02:31]} 12. O-O {[%clk 0:01:34]}  f6 {[%clk 0:02:28]} 13. a4 {[%clk 0:01:31]}  Rhf8 {[%clk 0:01:44]} 14. a5 {[%clk 0:01:24]}  Kb8 {[%clk 0:01:24]} 15. b5 {[%clk 0:01:20]} 1-0


[Site "https://www.chess.com"]

[Event "Titled Tuesday Blitz July 18 Late 2023"]
[White "ChessSG1"]
[Black "Shuvalova, Polina"]
[BlackFideId "24171760"]
[WhiteElo "2279"]
[BlackElo "2643"]
[Result "0-1"]
[Round "7"]
[TimeControl "180+2"]
[Date "2023.07.18"]
[WhiteClock "0:00:01"]
[BlackClock "0:00:09"]
[Board "102"]

1. Nf3 {[%clk 0:03:00]}  Nf6 {[%clk 0:02:59]} 2. c4 {[%clk 0:03:01]}  e6 {[%clk 0:03:00]} 3. g3 {[%clk 0:03:00]}  d5 {[%clk 0:03:00]} 4. d4 {[%clk 0:03:01]}  Be7 {[%clk 0:02:59]} 5. Bg2 {[%clk 0:03:01]}  O-O {[%clk 0:03:00]} 6. O-O {[%clk 0:03:02]}  Nbd7 {[%clk 0:03:00]} 7. Qc2 {[%clk 0:03:01]}  c6 {[%clk 0:03:01]} 8. Nbd2 {[%clk 0:03:02]}  b6 {[%clk 0:03:01]} 9. e4 {[%clk 0:03:02]}  Bb7 {[%clk 0:02:59]} 10. cxd5 {[%clk 0:02:58]}  cxd5 {[%clk 0:02:59]} 11. e5 {[%clk 0:02:58]}  Ne4 {[%clk 0:02:58]} 12. Nxe4 {[%clk 0:02:45]}  dxe4 {[%clk 0:02:59]} 13. Nd2 {[%clk 0:02:45]}  Rc8 {[%clk 0:02:59]} 14. Qd1 {[%clk 0:02:45]}  Nb8 {[%clk 0:02:50]} 15. Nxe4 {[%clk 0:02:42]}  Bd5 {[%clk 0:02:50]} 16. Be3 {[%clk 0:02:37]}  Qd7 {[%clk 0:02:50]} 17. Nc3 {[%clk 0:02:36]}  Bxg2 {[%clk 0:02:49]} 18. Kxg2 {[%clk 0:02:37]}  Rfd8 {[%clk 0:02:50]} 19. Qf3 {[%clk 0:02:35]}  Nc6 {[%clk 0:02:48]} 20. Rfd1 {[%clk 0:02:36]}  Bb4 {[%clk 0:02:36]} 21. Rac1 {[%clk 0:02:31]}  Bxc3 {[%clk 0:02:35]} 22. bxc3 {[%clk 0:02:29]}  b5 {[%clk 0:02:33]} 23. Bg5 {[%clk 0:02:29]}  Re8 {[%clk 0:02:32]} 24. Qg4 {[%clk 0:02:18]}  Kh8 {[%clk 0:02:27]} 25. h4 {[%clk 0:02:13]}  h6 {[%clk 0:02:20]} 26. Be3 {[%clk 0:02:12]}  Ne7 {[%clk 0:02:19]} 27. Qe4 {[%clk 0:02:10]}  Qd5 {[%clk 0:02:18]} 28. Qxd5 {[%clk 0:02:01]}  Nxd5 {[%clk 0:02:19]} 29. Bd2 {[%clk 0:02:02]}  Rc4 {[%clk 0:02:16]} 30. Rb1 {[%clk 0:02:02]}  a6 {[%clk 0:02:12]} 31. Rb3 {[%clk 0:02:00]}  Rec8 {[%clk 0:02:07]} 32. Rc1 {[%clk 0:01:54]}  Ra4 {[%clk 0:02:07]} 33. a3 {[%clk 0:01:52]}  Kg8 {[%clk 0:02:04]} 34. Kf1 {[%clk 0:01:52]}  Nb6 {[%clk 0:02:03]} 35. Ke2 {[%clk 0:01:44]}  Kf8 {[%clk 0:02:03]} 36. Kd3 {[%clk 0:01:41]}  Rac4 {[%clk 0:01:59]} 37. g4 {[%clk 0:01:37]}  Ke7 {[%clk 0:01:58]} 38. h5 {[%clk 0:01:35]}  Nd5 {[%clk 0:01:54]} 39. g5 {[%clk 0:01:33]}  hxg5 {[%clk 0:01:53]} 40. Bxg5+ {[%clk 0:01:34]}  Kd7 {[%clk 0:01:54]} 41. Bd2 {[%clk 0:01:32]}  Rh8 {[%clk 0:01:54]} 42. a4 {[%clk 0:01:29]}  Rxa4 {[%clk 0:01:53]} 43. c4 {[%clk 0:01:29]}  bxc4+ {[%clk 0:01:45]} 44. Rxc4 {[%clk 0:01:28]}  Rxc4 {[%clk 0:01:46]} 45. Kxc4 {[%clk 0:01:29]}  Kc6 {[%clk 0:01:32]} 46. Rh3 {[%clk 0:01:26]}  Nb6+ {[%clk 0:01:24]} 47. Kd3 {[%clk 0:01:22]}  Nd5 {[%clk 0:01:20]} 48. Rf3 {[%clk 0:00:58]}  Rxh5 {[%clk 0:01:11]} 49. Rxf7 {[%clk 0:00:58]}  Rh3+ {[%clk 0:01:12]} 50. Ke2 {[%clk 0:00:55]}  g5 {[%clk 0:01:09]} 51. Bxg5 {[%clk 0:00:53]}  Nc3+ {[%clk 0:01:09]} 52. Kf1 {[%clk 0:00:51]}  Kd5 {[%clk 0:01:00]} 53. Be3 {[%clk 0:00:51]}  a5 {[%clk 0:00:55]} 54. Ra7 {[%clk 0:00:49]}  a4 {[%clk 0:00:54]} 55. Kg2 {[%clk 0:00:49]}  Rh8 {[%clk 0:00:53]} 56. Bd2 {[%clk 0:00:50]}  Nb1 {[%clk 0:00:48]} 57. Bb4 {[%clk 0:00:47]}  Rg8+ {[%clk 0:00:38]} 58. Kf1 {[%clk 0:00:43]}  Kxd4 {[%clk 0:00:30]} 59. Rxa4 {[%clk 0:00:43]}  Kd3 {[%clk 0:00:27]} 60. Ra1 {[%clk 0:00:39]}  Kc2 {[%clk 0:00:26]} 61. Ra2+ {[%clk 0:00:32]}  Kd3 {[%clk 0:00:24]} 62. Rb2 {[%clk 0:00:30]}  Rh8 {[%clk 0:00:23]} 63. Kg2 {[%clk 0:00:24]}  Rg8+ {[%clk 0:00:21]} 64. Kh2 {[%clk 0:00:19]}  Rh8+ {[%clk 0:00:20]} 65. Kg3 {[%clk 0:00:19]}  Rh1 {[%clk 0:00:20]} 66. Kg4 {[%clk 0:00:13]}  Rf1 {[%clk 0:00:15]} 67. Kg5 {[%clk 0:00:12]}  Ke4 {[%clk 0:00:14]} 68. Kf6 {[%clk 0:00:12]}  Kd5 {[%clk 0:00:12]} 69. Bd6 {[%clk 0:00:01]}  Nc3 {[%clk 0:00:11]} 70. Rd2+ {[%clk 0:00:02]}  Kc6 {[%clk 0:00:09]} 71. Kxe6 {[%clk 0:00:02]}  Ne4 {[%clk 0:00:08]} 72. Rc2+ {[%clk 0:00:03]}  Kb5 {[%clk 0:00:09]} 73. Kd5 {[%clk 0:00:03]}  Ng5 {[%clk 0:00:08]} 74. f4 {[%clk 0:00:02]}  Rd1+ {[%clk 0:00:09]} 75. Rd2 {[%clk 0:00:01]}  Rxd2# {[%clk 0:00:09]} 0-1


[Site "https://www.chess.com"]

[Event "Titled Tuesday Blitz July 18 Late 2023"]
[White "Cooper, Aaron"]
[Black "szachmistrz2500"]
[WhiteFideId "2634945"]
[WhiteElo "2291"]
[BlackElo "2474"]
[Result "0-1"]
[Round "7"]
[TimeControl "180+2"]
[Date "2023.07.18"]
[WhiteClock "0:00:15"]
[BlackClock "0:00:50"]
[Board "108"]

1. b4 {[%clk 0:03:00]}  e5 {[%clk 0:02:57]} 2. Bb2 {[%clk 0:02:58]}  Bxb4 {[%clk 0:02:56]} 3. Bxe5 {[%clk 0:02:58]}  Nf6 {[%clk 0:02:56]} 4. c3 {[%clk 0:02:56]}  Be7 {[%clk 0:02:52]} 5. Nf3 {[%clk 0:02:47]}  d5 {[%clk 0:02:51]} 6. g3 {[%clk 0:02:40]}  O-O {[%clk 0:02:51]} 7. Bg2 {[%clk 0:02:39]}  c6 {[%clk 0:02:50]} 8. O-O {[%clk 0:02:38]}  Bf5 {[%clk 0:02:44]} 9. Bxf6 {[%clk 0:02:34]}  Bxf6 {[%clk 0:02:43]} 10. d4 {[%clk 0:02:35]}  Nd7 {[%clk 0:02:41]} 11. Nbd2 {[%clk 0:02:34]}  b5 {[%clk 0:02:35]} 12. a4 {[%clk 0:02:30]}  a6 {[%clk 0:02:34]} 13. Re1 {[%clk 0:02:16]}  Re8 {[%clk 0:02:28]} 14. Nb3 {[%clk 0:02:07]}  Be4 {[%clk 0:02:15]} 15. Nfd2 {[%clk 0:02:07]}  Bxg2 {[%clk 0:02:06]} 16. Kxg2 {[%clk 0:02:08]}  Qe7 {[%clk 0:02:00]} 17. e4 {[%clk 0:01:56]}  dxe4 {[%clk 0:01:57]} 18. Rxe4 {[%clk 0:01:46]}  Qd6 {[%clk 0:01:55]} 19. Rxe8+ {[%clk 0:01:43]}  Rxe8 {[%clk 0:01:54]} 20. axb5 {[%clk 0:01:43]}  axb5 {[%clk 0:01:51]} 21. Qf3 {[%clk 0:01:40]}  Nb6 {[%clk 0:01:50]} 22. Ra6 {[%clk 0:01:38]}  Nd5 {[%clk 0:01:49]} 23. c4 {[%clk 0:01:35]}  bxc4 {[%clk 0:01:45]} 24. Nxc4 {[%clk 0:01:35]}  Qc7 {[%clk 0:01:39]} 25. Ne3 {[%clk 0:01:05]}  Nb4 {[%clk 0:01:33]} 26. Ra4 {[%clk 0:00:59]}  Qb6 {[%clk 0:01:31]} 27. Nf5 {[%clk 0:00:38]}  Rd8 {[%clk 0:01:06]} 28. h4 {[%clk 0:00:28]}  Qb5 {[%clk 0:01:03]} 29. Ra5 {[%clk 0:00:25]}  Qb6 {[%clk 0:00:57]} 30. g4 {[%clk 0:00:26]}  Nc2 {[%clk 0:00:52]} 31. Ra4 {[%clk 0:00:15]}  Ne1+ {[%clk 0:00:50]} 0-1


[Site "https://www.chess.com"]